{"text_format":"1","workbook":"xlsx","n_sheets":7,"sheets":["Forside","Parametre","Ark2","Hjælpeskema","Vejledningstekst","Udskrift ","Kommentarer"],"not_rendered":{"charts":0,"images":24,"macros":1,"external_links":0,"defined_names":25,"comments":0,"pivot_tables":0},"unopened":[],"bounds":{"document_bytes":16777216,"sheet_cells":100000,"rows_first":2000,"rows_last":500,"rows_between":2000,"halvings":0,"cell_chars":16384,"cell_head_chars":4096},"cells_cut":0,"cells_raw":0,"read":"whole","date_system":"1900"}

{"sheet":"Forside","index":0,"n_rows":26,"n_cols":10,"rows_kept":26,"cut":false,"hidden":false,"merged":[[9,1,22,11]]}
[]
[null,"Beslutningsstøttemodel til økologisk vinterraps"]
[]
[]
[]
[]
[]
[]
[]
[null,"Formålet med denne model er at vurdere rapsens udbyttepotentiale i det tidlige forår, med henblik på at afgøre om rapsen skal erstattes af vårkorn og tælle som efterafgrøde, eller om udbyttet vurderes tilstrækkeligt højt til at give højere dækningsbidrag end vårsæd. Modellen tager således udgangspunkt i her-og-nu situationen i marken og indeholder derfor ikke betydningen af skadevoldere og vejrforhold i løbet af dyrkningssæsonen, som kan hæve, men nok især sænke udbyttet ved høst.\n\nEt repræsentativt område af rapsmarken inspiceres. Det er vigtigt at vurdere rapsens ensartethed. Rapsen vurderes ud fra 11 parametre som indtastes i modellen, som til sammen beregner et udbyttepotentiale. Herefter indtaster man aktuel rapspris, samt alternativt udbyttepotentiale i vårkorn, etableret umiddelbart efter evt. sløjfning af rapsen, samt en aktuel kornpris. Modellen kommer nu med anvisning til, hvilken afgrøde der skal satses på som hovedafgrøde. Er man uenig i det beregnede udbyttepotentiale i vinterrapsen, kan værdien overskrives.\n\nRigtig god fornøjelse!"]
[]
[]
[]
[]
[]
[]
[]
[]
[]
[]
[]
[]
[]
[null,"Modellen er udviklet i en arbejdspakke i projektet "]
[null,"Dyrkningssikkerhed og strategi i økologisk vinterraps"]
[null,null,null,null,null,null,null,null,null,"Version 1.0. Marts 2018"]

{"sheet":"Parametre","index":1,"n_rows":50,"n_cols":43,"rows_kept":50,"cut":false,"hidden":false,"merged":[[49,1,49,37],[45,3,47,4],[45,1,47,1],[45,5,47,5],[2,3,2,5],[4,3,4,5]]}
[null,"Beslutningsstøttemodel til økologisk vinterraps"]
[null,"Vurdering af øko-rapsens skæbne ved vækststart i foråret"]
[null,"Model beregnet hos landmand, marknr. ",null,"Øko Ole, mark 4-0"]
[]
[null,"Vurderinger foretaget af, dato",null,"Konsulent, den 1/3-2018"]
[null,"Plantetal/m2","Point, plantetal",null,"Vitalitet (1-10)",null,null,"Rækkeafstand","Point, rækkeafst.",null,"Rod/stængel-tykkelse","Point, stængeltykkelse",null,"Generelt ukrudtstryk i marken","Point ukrudtstryk",null,"Kamiller/ m2","Point kamiller",null,"Antal jordloppelarver/plante","Point larveangreb",null,"Markstr, ha","Point strørrelse",null,"Gødskningstilstand","point gødsk-ning",null,"Sædskiftesygsomme",null,null,"Rod-ukrudt",null,null,"Pointsum\nFra","Til","Resultat: vurderet udb.pot., hkg/ha",null,null,"Etableringsomkostn., alt. Afgrøde","Skal rapsen sløjfes?"]
[null,"- Vælg plantetal",0,"- Vælg plantetal","- Bedøm vitalitet",0,"- Bedøm vitalitet","- Vælg rækkeafstand",5,"- Vælg rækkeafstand","- Mål rodtykkelse",0,"- Mål rodtykkelse","- Generelt ukrudtstryk",7,"- Generelt ukrudtstryk","- Tæl kamiller",6,"- Tæl kamiller","- Tæl jordloppelarver i hovedskud",5,"- Tæl jordloppelarver i hovedskud","- Markstørrelse",1,"- Markstørrelse","- Vurder gødskningstilstand",0,"- Vurder gødskningstilstand","- Vurder risiko for sædskiftesygdomme",1,"- Vurder risiko for sædskiftesygdomme","- Rodukrudt",-2,"- Rodukrudt"]
[null,"<15 pl. pr. kvadratmeter",1,"<15 pl. pr. kvadratmeter","Vitalitet 1 = dødt skud",1,"Vitalitet 1 = dødt skud","Bredsået",6,"Bredsået","Tykkelse mindre end 6 mm",1,"Tykkelse mindre end 6 mm","Meget lavt ukrudtstryk",10,"Meget lavt ukrudtstryk","1-2 pr. kvm",10,"1-2 pr. kvm","0 pr. plante",10,"0 pr. plante","0-3 ha",0,"0-3 ha","Lavt næringsstofniveau",-2,"Lavt næringsstofniveau","< 3 rapsfrie år eller meget korsblomstret ukrudt",-7,"< 3 rapsfrie år eller meget korsblomstret ukrudt","Få kvik, tidsler mv.",0,"Få kvik, tidsler mv.",80,3000,40,{"$f":"IF(AND($C$38>AI8,$C$38<=AJ8),AK8,0)","v":0}]
[null,"15-20 pl. pr. kvadratmeter",3,"15-20 pl. pr. kvadratmeter","Vitalitet 2",2,"Vitalitet 2","Rækkeafstand 12,5 cm",7,"Rækkeafstand 12,5 cm","Tykkelse 6 - 8 mm",5,"Tykkelse 6 - 8 mm","Lavt ukrudtstryk",8,"Lavt ukrudtstryk","3-4 pr. kvm",9,"3-4 pr. kvm","1 pr. plante",8,"1 pr. plante","3-6 ha",2,"3-6 ha","Middelt næringsstofniveau",5,"Middelt næringsstofniveau","< 4 år ml. rapsdyrkning og mange agerkål/sennep",-3,"< 4 år ml. rapsdyrkning og mange agerkål/sennep","Spredte kolonier af kvik, tidsler mv.",-3,"Spredte kolonier af kvik, tidsler mv.",70,80,35,0,null,null,null,null,"Hvis Ja: Prioriter en god vårafgrøde"]
[null,"21-30 pl. pr. kvadratmeter",5,"21-30 pl. pr. kvadratmeter","Vitalitet 3",3,"Vitalitet 3","Rækkeafstand 25 cm",8,"Rækkeafstand 25 cm","Tykkelse større end 8 mm",10,"Tykkelse større end 8 mm","Middel ukrudtstryk",4,"Middel ukrudtstryk","5-6 pr. kvm",8,"5-6 pr. kvm","2 pr. plante",6,"2 pr. plante","6-10 ha",4,"6-10 ha","Højt næringsstofniveau",10,"Højt næringsstofniveau","< 4 år ml. rapsdyrkning og få agerkål/sennep",2,"< 4 år ml. rapsdyrkning og få agerkål/sennep","Meget kvik, tidsler mv. ",-6,"Meget kvik, tidsler mv. ",60,70,30,0,null,null,null,null,"Hvis måske: Visuel vurdering  "]
[null,"31-40 pl. pr. kvadratmeter",7,"31-40 pl. pr. kvadratmeter","Vitalitet 4",4,"Vitalitet 4","Rækkeafstand 50 cm",10,"Rækkeafstand 50 cm",null,null,null,"Højt ukrudtstryk",-3,"Højt ukrudtstryk","7-8 pr. kvm",7,"7-8 pr. kvm","3 pr. plante",4,"3 pr. plante","10-15 ha",6,"10-15 ha",null,null,null,"> 5 år ml. rapsdyrkning, mange agerkål/sennep ",4,"> 5 år ml. rapsdyrkning, mange agerkål/sennep ",null,null,null,50,60,25,0,null,null,null,null,"Hvis nej: Færdiggødsk rapsen - husk S"]
[null,"41-50 pl. pr. kvadratmeter",8,"41-50 pl. pr. kvadratmeter","Vitalitet 5",5,"Vitalitet 5",null,null,null,null,null,null,"Massivt ukrudtstryk",-6,"Massivt ukrudtstryk","9-10 pr. kvm",5,"9-10 pr. kvm","4 pr. plante",0,"4 pr. plante",">15 ha",8,">15 ha",null,null,null,"> 5 år ml. rapsdyrkning, få agerkål/sennep ",8,"> 5 år ml. rapsdyrkning, få agerkål/sennep ",null,null,null,40,50,20,0]
[null,"51-60 pl. pr. kvadratmeter",9,"51-60 pl. pr. kvadratmeter","Vitalitet 6",6,"Vitalitet 6",null,null,null,null,null,null,null,null,null,"11-12 pr. kvm",2,"11-12 pr. kvm",">5 pr. plante",-3,">5 pr. plante",null,null,null,null,null,null,null,null,null,null,null,null,30,40,15,0]
[null,">60 pl. pr. kvadratmeter",10,">60 pl. pr. kvadratmeter","Vitalitet 7",7,"Vitalitet 7",null,null,null,null,null,null,null,null,null,"13-14 pr. kvm",0,"13-14 pr. kvm",null,null,null,null,null,null,null,null,null,null,null,null,null,null,null,20,30,10,10]
[null,null,null,null,"Vitalitet 8",8,"Vitalitet 8",null,null,null,null,null,null,null,null,null,">15 pr. kvm",-3,">15 pr. kvm",null,null,null,null,null,null,null,null,null,null,null,null,null,null,null,10,20,5,0]
[null,null,null,null,"Vitalitet 9",9,"Vitalitet 9",null,null,null,null,null,null,null,null,null,null,null,null,null,null,null,null,null,null,null,null,null,null,null,null,null,null,null,0,10,0,0]
[null,null,null,null,"Vitalitet 10 = usvækket skud",10,"Vitalitet 10 = usvækket skud",null,null,null,null,null,null,null,null,null,null,null,null,null,null,null,null,null,null,null,null,null,null,null,null,null,null,null,null,null,null,{"$f":"SUM(AL8:AL16)","v":10}]
[]
[null,"Vekselvirkning mellem rodtykkelse og antal jordloppelarver",null,null,null,null,null,null,null,null,null,null,null,"Step 1 er en brugbar model, step 2 er opkobling på farmtrack, så gentagelser registreres."]
[null,"Definition af ukrudtstryk",null,null,null,null,null,null,null,null,null,null,null,"HVIS B5<15, så sløjf afgrøden"]
[null,"Definition af vitalitet, 3-4 niveauer",null,null,null,null,null,null,null,null,null,null,"Hvis resultatet af raps er AC36 kr bedre end alt. Afgrøde: gul"]
[null,"OBS på vejledninger til bedømmelser fra Landsforsøg",null,null,null,null,null,null,null,null,null,null,"Vekselvirkning ml vitalitet og plantetal: hvis lav begge=rød"]
[null,"Antal rapsfrie år = sædskifterisiko: hyppighed af hulstænglede afgrøder og korsbl. efterafgrøder",null,null,null,null,null,null,null,null,null,null,"Kommentar ved gul: vurdering af omkostningen af en øget opformering af ukrudt"]
[null,"-og få en god raps eller en rettidig vårsæd efter raps som efterafgrøde",null,null,null,null,null,null,null,null,null,null,"Kommentar/beregning på ensartethed",null,null,null,null,null,null,null,null,null,null,null,"Etableringsomkostninger kalkuler Mark Øko-2017"]
[null,null,null,null,null,null,null,null,null,null,null,null,null,null,null,null,null,null,null,null,null,null,null,null,null,null,null,"Udsæd",697,"Kr./ha"]
[null,null,null,null,null,null,null,null,null,null,null,null,null,null,null,null,null,null,null,null,null,null,null,null,null,null,null,"Pløjning",675]
[null,null,0,null,null,null,null,null,null,null,null,null,null,null,null,null,null,null,null,null,null,null,null,null,null,null,null,"Harvning+såni",400]
[null,null,0,null,null,null,null,null,null,null,null,null,null,null,null,null,null,null,null,null,null,null,null,null,null,null,null,"Tromling",165]
[null,null,5,null,null,null,null,null,null,null,null,null,null,null,null,null,null,null,null,null,null,null,null,null,null,null,null,"Sum",{"$f":"SUM(AC25:AC28)","v":1937},"Kr./ha"]
[null,null,0,null,null,null,null,null,null,null,null,null,null,null,null,null,null,null,null,null,null,null,null,null,null,"Dækningsbidrag",null,"Korn",{"$f":"(D40*D41)-AC29","v":7688}]
[null,null,7,null,null,null,null,null,null,null,null,null,null,null,null,null,null,null,null,null,null,null,null,null,null,null,null,"Raps",{"$f":"D39*D44","v":{"$error":"#N/A"}}]
[null,null,-2,null,null,null,null,null,null,null,null,null,null,null,null,null,null,null,null,null,null,null,null,null,null,null,null,"Forskel",{"$f":"AC30-AC31","v":{"$error":"#N/A"}}]
[null,null,6]
[null,null,5]
[null,null,1,null,null,null,null,null,null,null,null,null,null,null,null,null,null,null,null,null,null,null,null,null,"Mindst tilladte forskel i DB",null,null,null,3500,"kr"]
[null,null,0]
[null,null,1,null,null,null,null,null,null,null,null,null,null,null,null,null,null,null,null,"Vitalitet"]
[null,null,{"$f":"SUM(C27:C37)","v":23},null,null,null,null,null,null,null,null,null,null,null,null,null,null,null,0,1,2,3,4,5,6,7,8,9,10]
[null,"Aktuel pris, øko-raps: Kr. pr. hkg",null,720,"  incl. rensningsomk.",null,null,null,null,null,null,null,null,null,null,null,null,"Antal",1,0,0,0,0]
[null,"Aktuel pris, øko-vårsæd: Kr. pr. hkg",null,275,null,null,null,null,null,null,null,null,null,null,null,null,null,"planter",3,0,0,0,5]
[null,"Udbytte potentiale, vårsæd: Hkg kerne pr. ha",null,35,null,null,null,null,null,null,null,null,null,null,null,null,null,null,5,0,0,2,8]
[null,null,null,null,null,null,null,null,null,null,null,null,null,null,null,null,null,null,7,0,0,5,10]
[null,"Resultat",null,null,null,null,null,null,null,null,null,null,null,null,null,null,null,null,8,0,2,7,12]
[null,"Beregnet udbytte i vinterraps: Hkg frø pr. ha",null,{"$f":"IF($C$28<5,VLOOKUP($C$27,VitalitetAntalPlanter,$C$28+1,FALSE),$AL$17)","v":{"$error":"#N/A"}},null,null,null,null,null,null,null,null,{"$f":"IF($C$28<5,VLOOKUP($C$27,VitalitetAntalPlanter,$C$28+1,FALSE),$AL$17)","v":{"$error":"#N/A"}},null,null,null,null,null,9,0,5,8,15]
[null,null,null,null,null,null,null,null,null,null,null,null,null,null,null,null,null,null,10,0,7,10,18]
[null,"  Skal rapsen sløjfes?",null,{"$f":"IF((AC30-AC31)>=AC35,\"Sløjf rapsen!\",\nIF(AND((AC30-AC31)<AC35,(AC30-AC31)>0),\"Måske, vurder marken med øko-konsulenten!\",\nIF((AC30-AC31)<=0,\"Lad rapsen leve! Gød den færdig - husk svovl.\")))","v":{"$error":"#N/A"}},null,{"$f":"AC32","v":{"$error":"#N/A"}}]
[]
[]
[]
[null,{"$f":"IF(AND((AC30-AC31)<AC35,(AC30-AC31)>0),Vejledningstekst!A4,\"\")","v":{"$error":"#N/A"}}]

{"sheet":"Ark2","index":2,"n_rows":0,"n_cols":0,"rows_kept":0,"cut":false,"hidden":false,"merged":[]}

{"sheet":"Hjælpeskema","index":3,"n_rows":2,"n_cols":2,"rows_kept":2,"cut":false,"hidden":false,"merged":[]}
[]
[null,"Hjælpeskema til vurdering af vitalitet i raps"]

{"sheet":"Vejledningstekst","index":4,"n_rows":4,"n_cols":1,"rows_kept":4,"cut":false,"hidden":false,"merged":[]}
["Forskellen mellem dækningsbidraget i raps og korn er mindre end "]
[{"$f":"Parametre!AC35","v":3500}]
[" kr. pr. ha og du skal overveje om: Er rapsen tilstrækkelig konkurencestærk overfor relevant ukrudt? Kan rapsen radrenses? Er der områder i marken, hvor rapsen i dag står bedre end det angivne? Er der kun ringe risiko for angreb af glimmerbøsser og snudebiller (stor mark, ingen læhegn)? Kan du svar ja til flere af disse spørgsmål, så kan der være en reel chance for, at rapsen er den bedste afgrøde. Gå en ekstra tur i rapsmarken og diskuter evt. forholdene med din konsulent."]
[{"$f":"CONCATENATE(A1,A2,A3)","v":"Forskellen mellem dækningsbidraget i raps og korn er mindre end 3500 kr. pr. ha og du skal overveje om: Er rapsen tilstrækkelig konkurencestærk overfor relevant ukrudt? Kan rapsen radrenses? Er der områder i marken, hvor rapsen i dag står bedre end det angivne? Er der kun ringe risiko for angreb af glimmerbøsser og snudebiller (stor mark, ingen læhegn)? Kan du svar ja til flere af disse spørgsmål, så kan der være en reel chance for, at rapsen er den bedste afgrøde. Gå en ekstra tur i rapsmarken og diskuter evt. forholdene med din konsulent."}]

{"sheet":"Udskrift ","index":5,"n_rows":42,"n_cols":29,"rows_kept":42,"cut":false,"hidden":false,"merged":[[41,0,41,6],[5,2,5,5],[6,2,6,5],[37,0,39,0],[37,2,39,3],[37,4,39,4]]}
["Beslutningsstøttemodel "]
["Økologisk vinterraps"]
[]
["Vurdering af øko-rapsens skæbne ved vækststart i foråret"]
[]
["Model beregnet hos landmand, marknr.: ",null,{"$f":"Parametre!D3","v":"Øko Ole, mark 4-0"}]
["Mark og afgrøde er vurderet af:",null,{"$f":"Parametre!D5","v":"Konsulent, den 1/3-2018"}]
[]
[]
["Registreringer"]
["Generelle oplysninger",null,null,null,"Vurderinger"]
["Markstørrelse:",null,null,null,{"$f":"VLOOKUP(J12,OpslagMarkstr,2,FALSE)","v":"- Markstørrelse"},null,null,null,null,{"$f":"Parametre!C35","v":1}]
["Udsået rækkeafstand:",null,null,null,{"$f":"VLOOKUP(J13,OpslagRækkeafstand,2,FALSE)","v":"- Vælg rækkeafstand"},null,null,null,null,{"$f":"Parametre!C29","v":5}]
["Markens gødningstilstand:",null,null,null,{"$f":"VLOOKUP(J14,OpslagGødskning,2,FALSE)","v":"- Vurder gødskningstilstand"},null,null,null,null,{"$f":"Parametre!C36","v":0}]
[]
["Rapsplanternes tilstand"]
["Plantetæthed, antal rapsplanter:",null,null,null,{"$f":"VLOOKUP(J17,OpslagPlantetal,2,FALSE)","v":"- Vælg plantetal"},null,null,null,null,{"$f":"Parametre!C27","v":0}]
["Karakter for vitalitet:",null,null,null,{"$f":"VLOOKUP(J18,OpslagVitalitet,2,FALSE)","v":"- Bedøm vitalitet"},null,null,null,null,{"$f":"Parametre!C28","v":0}]
["Gennemsnitlig rodtykkelse:",null,null,null,{"$f":"VLOOKUP(J19,OpslagRod,2,FALSE)","v":"- Mål rodtykkelse"},null,null,null,null,{"$f":"Parametre!C30","v":0}]
[]
["Ukrudt i marken"]
["Generelt ukrudtstryk i marken:",null,null,null,{"$f":"VLOOKUP(J22,OpslagUkrudtstryk,2,FALSE)","v":"- Generelt ukrudtstryk"},null,null,null,null,{"$f":"Parametre!C31","v":7}]
["Forekomst af rodukrudt:",null,null,null,{"$f":"VLOOKUP(J23,OpslagRodukrudt,2,FALSE)","v":"- Rodukrudt"},null,null,null,null,{"$f":"Parametre!C32","v":-2}]
["Antal kamiller:",null,null,null,{"$f":"VLOOKUP(J24,OpslagKamiller,2,FALSE)","v":"- Tæl kamiller"},null,null,null,null,{"$f":"Parametre!C33","v":6}]
[]
["Skadedyr i marken"]
["Angreb af jordloppelarver:",null,null,null,{"$f":"VLOOKUP(J27,OpslagJordlopper,2,FALSE)","v":"- Tæl jordloppelarver i hovedskud"},null,null,null,null,{"$f":"Parametre!C34","v":5}]
[]
["Til vurdering af risiko for sædskiftesygdomme"]
["Antal rapsfrie år og korsblomstret ukrudt",null,null,null,{"$f":"VLOOKUP(J30,OpslagSædskifte,2,FALSE)","v":"- Vurder risiko for sædskiftesygdomme"},null,null,null,null,{"$f":"Parametre!C37","v":1}]
[]
["Resultat: Udbyttepotentiale ud fra ovenstående vurderinger:",null,null,null,{"$f":"Parametre!D44","v":{"$error":"#N/A"}},"hkg frø pr. ha"]
[]
["Angivet aktuel pris, øko-raps: Kr. pr. hkg",null,null,null,{"$f":"Parametre!D39","v":720}]
["Angivet aktuel pris, øko-vårsæd: Kr pr. hkg",null,null,null,{"$f":"Parametre!D40","v":275}]
["Vurderet udbytte potentiale, vårsæd: Hkg kerne pr. ha",null,null,null,{"$f":"Parametre!D41","v":35},null,null,null,null,null,null,null,null,null,null,null,null,null,null,null,null,null,null,null,null,null,null,null,{"$f":"Parametre!AC35","v":3500}]
[]
["  Skal rapsen sløjfes?",null,{"$f":"Parametre!D46","v":{"$error":"#N/A"}},null,{"$f":"Parametre!AC32","v":{"$error":"#N/A"}}]
[]
[]
[]
[{"$f":"Parametre!B50","v":{"$error":"#N/A"}}]

{"sheet":"Kommentarer","index":6,"n_rows":0,"n_cols":0,"rows_kept":0,"cut":false,"hidden":false,"merged":[]}